bitfinex/quotes_ETHUSD_20211001
["timestamp","ask_amount","ask_price","bid_price","bid_amount"]
[1633117907020,2.79305698,3298.0,3297.8,0.17812834]
[1633117908020,2.79305698,3298.0,3297.7,0.90031748]
[1633117908221,0.1079,3297.9,3297.7,0.90031748]
[1633117908421,0.84590071,3297.8,3297.7,0.90031748]
[1633117909422,0.1079,3297.9,3297.7,0.90031748]
[1633117911227,0.1079,3297.9,3297.8,1.5116482]
[1633117911426,0.1079,3297.9,3297.8,4.54722]
[1633117912426,1.5139,3298.0,3297.8,4.72533185]
[1633117913626,0.10790014,3297.9,3297.8,4.54722]
[1633117916627,0.10790014,3297.9,3297.8,5.63644289]
[1633117916828,0.10790014,3297.9,3297.8,4.54722]
[1633117917836,1.5139,3298.0,3297.8,4.54722]
[1633117918032,1.5139,3298.0,3297.9,11.51980645]
[1633117918232,0.68811662,3298.0,3297.9,11.69559722]
[1633117918430,0.68811662,3298.0,3297.9,0.21175177]
[1633117919230,0.79602905,3298.0,3297.9,1.50575177]
[1633117920633,0.79602905,3298.0,3297.9,1.68775177]
[1633117921032,0.79602905,3298.0,3297.9,1.68773802]
[1633117923434,0.68811662,3298.0,3297.9,1.86581689]
[1633117923934,0.68811662,3298.0,3297.9,0.57181689]
[1633117924534,0.68811662,3298.0,3297.9,0.39373802]
[1633117924734,0.79602919,3298.0,3297.9,0.39373802]
[1633117928935,0.68811662,3298.0,3297.9,0.57181689]
[1633117930138,0.68811662,3298.0,3297.9,0.39373802]
[1633117931140,0.79602933,3298.0,3297.9,0.39373802]
[1633117933042,0.79602933,3298.0,3297.9,0.35777702]
[1633117934144,0.87594233,3298.0,3297.9,0.17577702]
[1633117934344,0.95002962,3298.0,3297.7,0.90031748]
[1633117934548,0.95002962,3298.0,3297.9,0.17807887]
[1633117934744,4.52868631,3298.0,3297.9,0.17807887]
[1633117934943,14.27868631,3298.0,3297.9,7.887e-05]
[1633117935145,6.95,3297.9,3297.7,0.90031748]
[1633117935346,4.73087,3297.8,3297.7,0.90031748]
[1633117935846,5.49928084,3297.8,3297.7,0.90031748]
[1633117936644,5.69619668,3297.8,3297.7,0.90031748]
[1633117937150,6.0656143,3297.6,3297.3,0.003]
[1633117937348,1.45871339,3297.4,3297.3,0.003]
[1633117937546,1.71692639,3297.4,3297.3,0.3484792]
[1633117937750,0.258213,3297.4,3297.3,0.3484792]
[1633117938148,0.258213,3297.4,3297.3,0.003]
[1633117939350,1.52734095,3297.4,3297.3,0.003]
[1633117940550,0.258213,3297.4,3297.3,0.003]
[1633117941751,0.258213,3297.4,3297.3,0.34815751]
[1633117941952,0.45503173,3297.4,3297.3,0.34815751]
[1633117942617,0.45503173,3297.4,3297.3,0.003]
[1633117944018,0.45503173,3297.4,3297.3,0.34832508]
[1633117944221,0.45503173,3297.4,3297.3,0.34828531]
[1633117944418,0.45503173,3297.4,3297.3,0.003]
[1633117945419,0.258213,3297.4,3297.3,0.003]
[1633117947021,0.182,3297.4,3297.3,0.34773477]
[1633117947225,0.182,3297.4,3297.3,0.34740779]
[1633117947420,0.37881887,3297.4,3297.3,0.34740779]
[1633117947623,0.37881887,3297.4,3297.3,1.59193543]
[1633117947819,0.37881887,3297.4,3297.3,0.34740779]
[1633117949423,0.37881887,3297.4,3297.3,0.003]
[1633117950823,0.182,3297.4,3297.3,0.003]
[1633117951223,0.182,3297.4,3297.3,0.34732366]
[1633117952024,0.182,3297.4,3297.3,0.003]
[1633117953024,0.37881901,3297.4,3297.3,0.003]
[1633117954927,0.37881901,3297.4,3297.3,0.3475145]
[1633117956329,0.182,3297.4,3297.3,0.3475145]
[1633117958028,0.182,3297.4,3297.3,0.003]
[1633117958427,0.37881915,3297.4,3297.3,0.003]
[1633117959830,0.37881915,3297.4,3297.3,0.34752395]
[1633117960030,0.37881915,3297.4,3297.3,0.003]
[1633117960228,0.37881915,3297.4,3297.3,0.34782686]
[1633117960432,0.37881915,3297.4,3297.3,0.34785488]
[1633117961829,0.182,3297.4,3297.3,0.34785488]
[1633117962030,0.182,3297.4,3297.3,0.003]
[1633117962229,0.182,3297.4,3297.3,0.34622812]
[1633117963033,0.182,3297.4,3297.3,1.17047627]
[1633117963832,0.37881929,3297.4,3297.3,1.51331578]
[1633117964233,0.37881929,3297.4,3297.3,5.27072581]
[1633117964434,0.19681929,3297.4,3297.3,5.32773405]
[1633117964635,0.19681929,3297.4,3297.3,2.80731578]
[1633117965637,0.19681929,3297.4,3297.3,7.35516578]
[1633117966033,1.929e-05,3297.4,3297.3,13.51997295]
[1633117966236,1.929e-05,3297.4,3297.3,19.76757295]
[1633117966432,1.929e-05,3297.4,3297.3,18.70388689]
[1633117967033,1.55326605,3297.7,3297.5,4.54649]
[1633117967232,1.55326605,3297.7,3297.6,14.80340233]
[1633117967432,1.55326605,3297.7,3297.6,15.70126508]
[1633117967632,1.55326605,3297.7,3297.6,7.60126508]
[1633117967831,1.55326605,3297.7,3297.6,9.06192068]
[1633117968838,1.55326605,3297.7,3297.6,6.70340233]
[1633117969535,1.65173662,3297.7,3297.6,6.70340233]
[1633117970536,1.65173662,3297.7,3297.6,9.07184295]
[1633117970934,1.65173662,3297.7,3297.6,6.70340233]
[1633117971135,1.65173662,3297.7,3297.6,1.85340233]
[1633117972634,1.55326605,3297.7,3297.6,1.85340233]
[1633117972835,0.68811662,3298.0,3297.7,1.55326605]
[1633117973037,0.68811662,3298.0,3297.8,2.71380788]
[1633117973235,0.68811662,3298.0,3297.9,15.88181343]
[1633117973440,0.68811662,3298.0,3297.9,0.52322246]
[1633117973634,0.68811662,3298.0,3297.9,6.52272697]
[1633117973836,0.68811662,3298.0,3297.9,12.29831433]
[1633117974234,0.68811662,3298.0,3297.9,10.68258269]
[1633117974436,0.68811662,3298.0,3297.9,11.08004382]
[1633117975035,0.78666026,3298.0,3297.9,11.08004382]
[1633117976041,0.78666026,3298.0,3297.9,7.53004382]
[1633117976439,0.78666026,3298.0,3297.9,9.87989442]
[1633117976637,0.78666026,3298.0,3297.9,7.53004382]
[1633117977642,0.003,3299.0,3298.0,0.08143974]
[1633117977840,0.003,3299.0,3298.6,0.02495635]
[1633117978040,0.003,3299.0,3298.7,0.52308933]
[1633117978242,0.003,3299.0,3298.8,2.73987626]
[1633117978442,0.003,3299.0,3298.9,0.182]
[1633117978645,0.003,3299.0,3298.9,4.68332421]
[1633117979042,0.003,3299.0,3298.9,2.47440442]
[1633117979242,0.003,3299.0,3298.9,3.76840442]
[1633117979441,1.503,3299.0,3298.9,3.76840442]
[1633117980442,1.55252712,3299.0,3298.9,3.76840442]
[1633117980644,2.58558486,3300.2,3299.8,12.95]
[1633117980848,0.006,3300.1,3299.9,14.68605785]
[1633117981043,0.006,3300.1,3299.9,17.9476]
[1633117981251,0.006,3300.1,3299.9,6.2476]
[1633117981644,0.006,3300.1,3299.9,14.7976]
[1633117981841,0.006,3300.1,3299.9,7.05523284]
[1633117982243,0.006,3300.1,3299.9,10.79144]
[1633117983850,0.00093691,3300.0,3299.9,10.79144]
[1633117984352,0.00787382,3300.1,3300.0,0.82813335]
[1633117984552,0.006,3300.7,3300.5,0.03487382]
[1633117984750,0.006,3300.7,3300.5,0.24113561]
[1633117984952,0.006,3300.7,3300.5,6.30673561]
[1633117985950,0.16153622,3300.6,3300.5,6.10047382]
[1633117986149,1.30175201,3300.6,3300.5,6.10047382]
[1633117986354,1.30175201,3300.6,3300.0,0.003]
[1633117986355,19.70258591,3300.5,3300.0,0.003]
[1633117986550,0.079913,3300.1,3300.0,0.003]
[1633117986750,6.57282091,3300.5,3299.6,12.95]
[1633117986951,6.20009891,3300.5,3300.2,4.54314]
[1633117987150,6.20009891,3300.5,3300.2,0.182]
[1633117987752,6.20009891,3300.5,3300.3,0.98044894]
[1633117988149,6.20009891,3300.5,3300.4,4.54309]
[1633117989151,7.70009891,3300.5,3300.4,5.73509]
[1633117989352,7.70009891,3300.5,3300.4,7.71608315]
[1633117989552,0.006,3300.6,3300.5,13.0]
[1633117989750,0.006,3300.6,3300.5,19.285513]
[1633117990354,0.006,3300.6,3300.5,8.81382328]
[1633117990949,0.006,3300.6,3300.5,6.285513]
[1633117991352,0.16153636,3300.6,3300.5,6.285513]
[1633117991950,0.16153636,3300.6,3300.5,7.60861316]
[1633117993153,0.006,3300.7,3300.6,13.0]
[1633117993357,0.006,3300.7,3300.6,13.182]
[1633117993552,0.006,3300.7,3300.6,0.182]
[1633117994755,0.006,3300.7,3300.6,4.93189673]
[1633117996959,0.08379259,3300.7,3300.6,4.72393]
[1633117998558,0.08379259,3300.7,3300.6,4.767083]
[1633117998758,0.08379259,3300.7,3300.6,5.777083]
[1633117998958,0.08379259,3300.7,3300.6,4.767083]
[1633118000023,0.08379259,3300.7,3300.6,4.72393]
[1633118000223,0.006,3300.7,3300.6,4.93189673]
[1633118000624,0.006,3300.7,3300.6,4.74989673]
[1633118000822,0.006,3300.7,3300.6,0.20796673]
[1633118002425,0.08379273,3300.7,3300.5,10.60345]
[1633118002624,0.07330433,3300.7,3300.5,10.60345]
[1633118005025,1.16938698,3300.7,3300.5,10.60345]
[1633118005627,1.09608265,3300.7,3300.5,10.60345]
[1633118005828,1.09608265,3300.7,3300.6,0.2102274]
[1633118007630,0.006,3300.8,3300.6,0.2102274]
[1633118007829,0.006,3300.8,3300.5,6.0599]
[1633118008030,0.07554867,3300.7,3300.5,6.0599]
[1633118008630,1.3164562,3300.7,3300.5,6.0599]
[1633118008831,0.07554867,3300.7,3300.5,6.0599]
[1633118011132,0.006,3300.8,3300.5,6.0599]
[1633118011431,0.006,3300.8,3300.6,2.632744]
[1633118011832,0.006,3300.8,3300.7,13.09326]
[1633118012030,0.006,3300.8,3300.7,4.54326]
[1633118013433,0.08158522,3300.8,3300.7,4.54326]
[1633118014433,0.94238451,3300.8,3300.7,4.54326]
[1633118015636,0.08158522,3300.8,3300.7,4.54326]
[1633118016635,0.006,3300.8,3300.7,4.54326]
[1633118019037,0.08158535,3300.8,3300.7,4.54326]
[1633118019238,0.08158535,3300.8,3300.7,4.72526]
[1633118022242,0.006,3300.8,3300.7,4.72526]
[1633118024445,1.5599953,3300.8,3300.7,4.72526]
[1633118024648,0.08158549,3300.8,3300.7,4.72526]
[1633118027645,0.006,3300.8,3300.7,4.72526]
[1633118029849,0.006,3300.8,3300.7,6.01926]
[1633118030049,0.08158563,3300.8,3300.7,6.01926]
[1633118030652,0.009,3301.0,3300.7,8.6525535]
[1633118030853,0.006,3302.3,3302.2,7.33560943]
[1633118031051,0.004,3303.0,3302.3,10.9]
[1633118031249,0.004,3303.0,3302.4,3.32219772]
[1633118031450,0.004,3303.0,3302.9,0.02463054]
[1633118031749,0.004,3303.0,3302.5,12.11241]
[1633118032150,3.02736,3302.9,3302.5,6.0599]
[1633118032347,0.73389296,3303.1,3302.5,6.0629]
[1633118032751,0.73389296,3303.1,3302.5,10.60362]
[1633118032949,1.00333769,3302.7,3302.5,10.60362]
[1633118033152,1.00333769,3302.7,3302.6,0.24727985]
[1633118035248,6.78859296,3303.1,3302.6,0.24727985]
[1633118035451,0.03825376,3302.7,3302.5,6.0629]
[1633118036251,0.03825376,3302.7,3302.6,5.47481638]
[1633118036451,0.03825376,3302.7,3302.5,6.0629]
[1633118037452,0.03825376,3302.7,3302.6,4.54062]
[1633118038651,0.006,3303.2,3302.6,4.54062]
[1633118038850,0.006,3303.2,3302.7,0.24732917]
[1633118039851,0.99477559,3303.2,3302.9,4.53982]
[1633118040053,1.12890314,3303.0,3302.9,4.53982]
[1633118040653,0.006,3303.3,3302.9,4.53982]
[1633118041054,0.03831449,3303.0,3302.9,4.53982]
[1633118041256,0.03831449,3303.0,3302.8,6.05309]
[1633118043260,1.28674331,3303.0,3302.8,6.05309]
[1633118043462,0.03831449,3303.0,3302.8,6.05309]
[1633118044319,0.80207776,3303.1,3302.9,0.24726341]
[1633118044858,0.006,3303.3,3302.9,0.24726341]
[1633118045660,0.006,3303.3,3303.0,4.5401]
[1633118045859,0.006,3303.3,3303.1,0.79304641]
[1633118046260,0.006,3303.3,3302.9,0.42926341]
[1633118046459,0.03837522,3303.2,3302.9,0.182]
[1633118047660,0.02788742,3303.2,3303.0,0.75340454]
[1633118048263,0.02788742,3303.2,3303.0,6.05258]
[1633118049261,0.02788742,3303.2,3303.1,5.47129753]
[1633118050862,0.88028927,3303.7,3303.1,5.72372264]
[1633118051063,1.96329394,3303.7,3303.1,5.72372264]
[1633118051661,1.96329394,3303.7,3303.1,4.79180511]
[1633118051861,11.857013,3304.2,3303.1,4.79180511]
[1633118051862,3.03243,3304.1,3303.1,4.53938]
[1633118052063,0.03317992,3303.6,3303.1,4.53938]
[1633118052862,0.03317992,3303.6,3303.1,5.41625425]
[1633118053867,0.03317992,3303.6,3303.1,4.53938]
[1633118054065,1.44024796,3303.4,3303.1,4.53938]
[1633118054463,0.03317992,3303.6,3303.1,4.53938]
[1633118054862,0.00222772,3303.3,3303.1,4.53938]
[1633118055262,0.00222772,3303.3,3303.2,0.25240867]
[1633118057465,0.00222772,3303.3,3303.1,4.53938]
[1633118057666,0.03537143,3303.3,3303.1,4.53938]
[1633118060668,0.00222772,3303.3,3303.2,3.30240867]
[1633118060870,0.00222772,3303.3,3303.0,0.003]
[1633118061068,0.26414072,3303.3,3303.0,0.003]
[1633118061268,0.83664299,3303.1,3302.6,0.003]
[1633118061468,1.17543751,3302.7,3302.6,0.003]
[1633118061673,0.83664299,3303.1,3302.6,0.003]
[1633118062468,0.83664299,3303.1,3302.6,4.5438]
[1633118062668,6.0546,3302.9,3302.6,0.003]
[1633118062868,0.261913,3302.8,3302.7,0.003]
[1633118063170,0.261913,3302.8,3302.6,0.003]
[1633118064172,9.2,3302.7,3302.5,5.3159]
[1633118064371,0.261913,3302.8,3302.5,5.3159]
[1633118064770,4.803513,3302.8,3302.5,5.3159]
[1633118065168,0.02412183,3302.7,3302.5,5.3159]
[1633118065370,13.132,3302.6,3301.8,0.003]
[1633118065571,2.6986829,3302.2,3301.8,0.003]
[1633118065773,20.04519747,3302.1,3301.8,0.003]
[1633118065971,13.029913,3301.9,3301.8,0.003]
[1633118066170,13.029913,3301.9,3300.8,0.006]
[1633118066171,13.211913,3301.9,3300.8,0.006]
[1633118066369,9.6,3301.7,3300.3,0.009]
[1633118066570,0.02458916,3301.1,3300.3,0.009]
[1633118066779,0.079913,3300.8,3300.3,0.74065028]
[1633118066969,0.182,3300.7,3300.3,0.74065028]
[1633118067168,0.182,3300.7,3300.4,0.009]
[1633118067569,0.182,3300.7,3300.1,0.009]
[1633118067770,0.182,3300.7,3299.8,0.012]
[1633118067970,0.182,3300.7,3299.9,0.36809085]
[1633118068169,0.182,3300.7,3300.2,0.74282803]
[1633118068571,0.15863288,3300.6,3300.3,0.009]
[1633118068772,0.34063288,3300.6,3300.3,0.009]
[1633118068976,0.34063288,3300.6,3299.2,1.52740624]
[1633118069172,2.6652125,3300.5,3299.3,0.36948672]
[1633118069377,0.003,3300.0,3299.3,0.36948672]
[1633118069574,0.079913,3299.8,3299.3,0.36948672]
[1633118069778,0.079913,3299.8,3299.2,1.52740624]
[1633118069779,1.17422238,3299.4,3299.2,1.52740624]
[1633118069973,0.182,3299.3,3299.2,1.52740624]
[1633118070377,0.817039,3300.0,3299.2,1.89085067]
[1633118070378,0.185,3300.0,3299.2,1.89085067]
[1633118070574,1.13654994,3299.3,3299.2,1.52740624]
[1633118070973,1.13654994,3299.3,3299.2,1.47740624]
[1633118071172,1.13654994,3299.3,3299.2,2.27903966]
[1633118071372,1.13654994,3299.3,3299.2,1.47740624]
[1633118072374,1.13654994,3299.3,3299.2,2.19914595]
[1633118073379,1.13654994,3299.3,3299.2,1.47740624]
[1633118073975,1.29494015,3299.3,3299.2,1.47740624]
[1633118074443,2.73196665,3299.3,3299.2,1.47740624]
[1633118077146,2.57357644,3299.3,3299.2,1.47740624]
[1633118077352,1.13654994,3299.3,3299.2,1.47740624]
[1633118078345,2.37006195,3299.3,3299.2,1.47740624]
[1633118079146,3.17246123,3299.3,3299.2,1.47740624]
[1633118079346,7.90155123,3299.3,3299.2,1.47740624]
[1633118079546,8.05994158,3299.3,3299.2,1.47740624]
[1633118079750,8.05994158,3299.3,3299.0,0.003]
[1633118079751,2.95481248,3299.2,3299.0,0.003]
[1633118079946,30.79968394,3299.1,3298.4,0.003]
[1633118080146,0.079913,3298.5,3297.9,0.043153]
[1633118080345,0.079913,3298.5,3297.4,0.009]
[1633118080346,0.87490084,3298.1,3297.4,0.009]
[1633118080547,0.87490084,3298.1,3297.5,1.45488683]
[1633118080548,1.23505863,3297.9,3297.5,1.45488683]
[1633118080747,1.23505863,3297.9,3296.8,0.012]
[1633118080947,2.91059666,3297.8,3297.5,0.003]
[1633118081146,1.23505863,3297.9,3297.5,0.003]
[1633118081350,1.23505863,3297.9,3297.1,0.009]
[1633118081547,3.0322,3298.2,3297.1,0.009]
[1633118081548,2.72211024,3298.1,3297.1,0.009]
[1633118081748,3.0322,3298.2,3297.0,5.97528]
[1633118081947,2.6206357,3298.1,3297.0,5.97528]
[1633118082148,0.96730349,3298.0,3297.4,0.72290103]
[1633118082550,1.5075966,3297.5,3297.4,0.72290103]
[1633118082749,2.61862396,3297.9,3297.4,0.72290103]
[1633118082948,2.65711556,3297.9,3297.0,5.97528]
[1633118083148,2.65711556,3297.9,3297.0,0.003]
[1633118083549,2.60051801,3297.9,3296.8,0.003]
[1633118084049,2.60051801,3297.9,3297.2,0.96191244]
[1633118084249,0.96730349,3298.0,3297.2,0.96191244]
[1633118085050,1.30825423,3297.6,3297.2,0.96191244]
[1633118085651,2.9042738,3297.9,3297.2,0.96191244]
[1633118085849,0.15797737,3297.9,3297.2,0.96191244]
[1633118087651,1.23501075,3297.6,3297.2,0.96191244]
[1633118088050,0.15797737,3297.9,3297.2,0.96191244]
[1633118088253,0.96730349,3298.0,3297.3,0.12811448]
[1633118089250,1.43152249,3297.9,3297.6,1.35525732]
[1633118089451,1.43152249,3297.9,3297.3,0.12811448]
[1633118089651,4.01663801,3297.9,3297.3,0.12811448]
[1633118090057,1.43152249,3297.9,3297.3,0.12811448]
[1633118090452,0.15797751,3297.8,3297.0,4.55108]
[1633118090651,0.15797751,3297.8,3297.1,1.28544828]
[1633118092052,1.26383981,3297.4,3297.1,1.28544828]
[1633118092451,0.95346458,3297.6,3297.1,1.28544828]
[1633118093252,0.95346458,3297.6,3297.0,0.003]
[1633118093654,3.65650895,3297.6,3296.9,0.003]
[1633118093852,0.95346458,3297.6,3297.1,0.12814748]
[1633118094255,1.19541639,3297.5,3297.1,0.12814748]
[1633118095855,1.19541639,3297.5,3297.0,1.0]
[1633118096054,2.73145814,3297.4,3297.0,1.0]
[1633118096255,2.73145814,3297.4,3297.0,1.003]
[1633118096456,0.1579047,3297.4,3297.0,1.003]
[1633118097258,3.1906647,3297.4,3297.0,1.003]
[1633118098859,5.75880919,3297.4,3297.0,1.003]
[1633118099060,8.79160919,3297.4,3297.0,1.003]
[1633118099259,8.63370449,3297.4,3297.0,1.003]
[1633118099462,8.58370449,3297.4,3297.1,0.12818047]
[1633118099660,6.05101347,3297.4,3297.1,0.12818047]
[1633118100862,2.58003088,3297.3,3297.1,0.12818047]
[1633118101065,2.58003088,3297.3,3296.2,2.463]
[1633118101066,12.7,3297.1,3296.2,2.463]
[1633118101263,12.7,3297.1,3296.3,0.003]
[1633118101264,3.57499717,3297.0,3296.3,0.003]
[1633118101664,13.029913,3296.4,3296.3,0.003]
[1633118101866,7.35,3296.3,3296.2,1.47740624]
[1633118102064,0.182,3296.3,3296.2,1.47740624]
[1633118102463,0.182,3296.3,3296.2,2.46]
[1633118102862,1.682,3296.3,3296.2,2.46]
[1633118103266,1.5,3296.3,3296.2,4.53406029]
[1633118104264,0.003,3297.0,3296.3,15.21861674]
[1633118104464,0.003,3297.0,3296.4,0.182]
[1633118104663,0.003,3297.0,3296.7,1.294]
[1633118104862,0.003,3297.0,3296.4,0.20653129]
[1633118105463,0.003,3297.0,3296.9,6.51156309]
[1633118106865,0.003,3297.0,3296.9,5.75041296]
[1633118107067,0.003,3297.0,3296.6,6.06432]
[1633118107267,0.22492226,3297.0,3296.6,6.06432]
[1633118107667,0.22492226,3297.0,3296.6,5.06432]
[1633118107868,0.22492226,3297.0,3296.7,0.85652952]
[1633118108272,0.22492226,3297.0,3296.8,1.294]
[1633118108471,0.003,3297.5,3297.0,12.98910298]
[1633118108673,0.003,3298.0,3297.4,13.04358789]
[1633118108869,0.003,3298.0,3297.5,1.43092594]
[1633118109070,0.003,3298.0,3297.7,4.54582]
[1633118109269,0.003,3298.0,3297.9,14.79796078]
[1633118109470,0.003,3298.0,3297.9,14.97996078]
[1633118110267,0.003,3298.0,3297.9,6.75033474]
[1633118110467,0.003,3298.0,3297.9,8.04433474]
[1633118111268,1.503,3298.0,3297.9,6.19637396]
[1633118111668,1.503,3298.0,3297.9,4.90237396]
[1633118111868,1.503,3298.0,3297.9,0.35680396]
[1633118112271,1.503,3298.0,3297.9,0.17480396]
[1633118113070,0.003,3298.0,3297.9,0.17480396]
[1633118114472,0.003,3298.0,3297.1,2.20214836]
[1633118114671,0.003,3298.0,3297.1,0.89149786]
[1633118114672,0.79258466,3297.6,3297.1,0.89149786]
[1633118114871,0.11419231,3298.0,3297.1,0.89149786]
[1633118115672,1.4151791,3297.5,3297.1,2.04270022]
[1633118115872,1.4151791,3297.5,3297.2,0.17493589]
[1633118116076,0.003,3298.0,3297.2,4.72305589]
[1633118117072,1.49160035,3297.9,3297.2,4.72305589]
[1633118117273,0.99737975,3297.8,3297.2,4.72305589]
[1633118117874,1.49160035,3297.9,3297.2,4.72305589]
[1633118118676,0.003,3298.0,3297.6,1.08795309]
[1633118118872,0.79044437,3297.8,3297.2,4.72305589]
[1633118119474,0.79044437,3297.8,3297.2,0.17493589]
[1633118119676,0.079913,3297.5,3297.2,0.17493589]
[1633118119874,1.3976122,3297.4,3297.2,0.17493589]
[1633118120073,1.5796122,3297.4,3297.0,0.04210298]
[1633118120278,2.58269513,3297.3,3297.0,0.04210298]
[1633118120474,3.65386935,3297.4,3297.0,0.04210298]
[1633118120475,1.24172438,3297.2,3297.0,2.98e-06]
[1633118120676,3.33242318,3296.3,3295.5,0.006]
[1633118120874,2.93246447,3296.2,3295.2,0.006]
[1633118121074,1.2875281,3295.3,3295.2,0.006]
[1633118121278,0.03870867,3295.4,3295.3,0.17554652]
[1633118121475,0.182,3295.7,3295.3,2.63554652]
[1633118121476,0.90980323,3295.6,3295.3,2.63554652]
[1633118121675,0.90980323,3295.6,3295.3,2.64154652]
[1633118121874,0.90980323,3295.6,3295.4,0.006]
[1633118121875,9.732,3295.5,3295.4,0.006]
[1633118122074,0.182,3295.5,3295.4,0.006]
[1633118123376,0.182,3295.5,3295.4,2.466]
[1633118124380,0.182,3295.5,3295.4,8.23685485]
[1633118124578,0.182,3295.5,3295.4,7.01661]
[1633118125177,0.182,3295.5,3295.4,2.466]
[1633118125579,0.182,3295.5,3295.4,3.9136997]
[1633118125780,0.29259659,3295.5,3295.4,2.466]
[1633118126778,0.182,3295.5,3295.4,2.466]
[1633118127179,0.182,3295.5,3295.4,7.01655]
[1633118127380,0.182,3295.5,3295.4,2.466]
[1633118128180,3.33242318,3296.3,3295.4,3.76]
[1633118128382,3.33242318,3296.3,3295.9,0.043153]
[1633118128782,3.33242318,3296.3,3296.0,0.003]
[1633118129180,3.33242318,3296.3,3296.1,4.54935]
[1633118129380,3.33242318,3296.3,3296.0,0.003]
[1633118129779,3.33242318,3296.3,3295.5,0.006]
[1633118130180,1.24015232,3296.1,3295.8,1.48026516]
[1633118130381,3.33242318,3296.3,3295.8,6.03022516]
[1633118130579,3.33242318,3296.3,3295.9,0.003]
[1633118131181,3.44317813,3296.3,3296.1,0.00114744]
[1633118131448,4.41612813,3296.3,3296.1,0.00114744]
[1633118131651,4.64317813,3296.3,3296.1,0.00114744]
[1633118132248,5.60186538,3296.3,3296.2,0.17536491]
[1633118132848,4.53242318,3296.3,3296.2,0.17536491]
[1633118134049,5.91258354,3296.3,3296.2,0.17536491]
[1633118136050,4.53242318,3296.3,3296.2,0.17536491]
[1633118136450,4.53127581,3296.3,3296.2,0.17536491]
[1633118136653,4.53127581,3296.3,3296.0,0.003]
[1633118136854,4.6420674,3296.3,3296.0,0.003]
[1633118137050,4.6420674,3296.3,3295.8,0.34695513]
[1633118137251,4.6420674,3296.3,3295.9,0.003]
[1633118137651,4.53127581,3296.3,3296.2,1.08279317]
[1633118137853,4.53127581,3296.3,3296.0,0.17539793]
[1633118138250,4.53127581,3296.3,3296.0,0.17839793]
[1633118138852,4.53127581,3296.3,3296.1,0.3413231]
[1633118139054,4.53127581,3296.3,3296.2,1.0]
[1633118141653,7.56510041,3296.3,3296.2,1.0]
[1633118142057,4.53127581,3296.3,3296.2,1.0]
[1633118142253,4.53127581,3296.3,3296.2,1.3430825]
[1633118142452,4.64205537,3296.3,3296.2,1.3430825]
[1633118143252,4.53127581,3296.3,3296.2,1.3430825]
[1633118143656,4.53127581,3296.3,3296.2,2.1195938]
[1633118143853,4.53127581,3296.3,3296.2,3.60357529]
[1633118144055,4.53127581,3296.3,3296.2,2.1195938]
[1633118144660,4.53127581,3296.3,3296.2,1.3430825]
[1633118145057,4.53127581,3296.3,3296.2,2.81024328]
[1633118146456,4.53127581,3296.3,3296.2,1.3430825]
[1633118147657,5.36511629,3296.3,3296.2,1.3430825]
[1633118147860,5.47590816,3296.3,3296.2,1.2930825]
[1633118148057,4.64206768,3296.3,3296.2,1.2930825]
[1633118148659,4.53127581,3296.3,3296.2,1.2930825]
[1633118149058,5.27242397,3296.3,3296.2,1.2930825]
[1633118153261,5.38321598,3296.3,3296.2,1.2930825]
[1633118154262,5.27242397,3296.3,3296.2,1.2930825]
[1633118155262,4.53127581,3296.3,3296.2,1.2930825]
[1633118156467,4.53127581,3296.3,3296.2,0.95]
[1633118156866,4.53127581,3296.3,3296.2,1.29451965]
[1633118158868,4.64206796,3296.3,3296.2,1.29451965]
[1633118159667,4.53127581,3296.3,3296.2,1.29451965]
[1633118164471,4.6420681,3296.3,3296.2,1.29451965]
[1633118165270,4.53127581,3296.3,3296.2,1.29451965]
[1633118166071,4.53127581,3296.3,3296.2,0.95]
[1633118167344,4.53127581,3296.3,3296.2,1.2939688]
[1633118168078,9.08194581,3296.3,3296.2,1.2939688]
[1633118169677,4.53127581,3296.3,3296.2,1.2939688]
[1633118169876,4.64206824,3296.3,3296.2,1.2939688]
[1633118170076,4.64206824,3296.3,3296.2,2.5187688]
[1633118170683,4.53127581,3296.3,3296.2,2.5187688]
[1633118174680,4.53127581,3296.3,3296.2,1.2939688]
[1633118175283,4.64206838,3296.3,3296.2,2.5879688]
[1633118175486,4.11266838,3296.3,3296.2,20.0873988]
[1633118175687,0.003,3297.0,3296.4,0.80124853]
[1633118175888,0.003,3297.0,3296.5,0.52258827]
[1633118176082,0.003,3297.0,3296.9,12.993153]
[1633118176349,0.003,3297.0,3296.9,6.99767268]
[1633118176482,0.003,3297.0,3296.9,11.54612268]
[1633118177083,0.003,3297.0,3296.9,8.19612268]
[1633118177285,0.003,3297.0,3296.9,6.90212268]
[1633118177884,0.003,3297.0,3296.9,7.07991387]
[1633118178282,0.003,3297.0,3296.9,5.78591387]
[1633118178882,0.003,3297.0,3296.9,7.16470067]
[1633118180885,0.05856672,3297.0,3296.9,7.16470067]
[1633118181485,0.05856672,3297.0,3296.9,8.45870067]
[1633118181687,0.003,3297.0,3296.9,8.45870067]
[1633118182487,0.89864911,3297.7,3297.0,11.4]
[1633118182687,1.45362906,3297.3,3297.1,0.34167013]
[1633118183088,1.45362906,3297.3,3297.0,0.003]
[1633118183486,1.45362906,3297.3,3296.6,0.34221149]
[1633118183699,1.45362906,3297.3,3296.7,0.003]
[1633118183889,0.99192692,3297.2,3296.7,5.52563995]
[1633118184088,0.99192692,3297.2,3296.8,0.34224612]
[1633118184289,3.03262,3297.6,3296.8,0.34524612]
[1633118184489,3.03262,3297.6,3296.9,0.003]
[1633118185359,1.51807038,3297.2,3296.9,0.003]
[1633118185693,3.0327196,3297.4,3296.9,0.003]
[1633118186295,0.05560334,3297.3,3296.9,0.003]
[1633118187094,1.56910112,3297.3,3296.9,0.003]
[1633118187292,1.51349778,3297.3,3297.0,0.23048065]
[1633118187493,3.0327196,3297.4,3297.1,0.34326398]
[1633118188491,3.0327196,3297.4,3297.1,1.74761109]
[1633118188693,3.0327196,3297.4,3297.2,0.34377278]
[1633118188895,3.0327196,3297.4,3297.3,0.3436482]
[1633118189092,3.0327196,3297.4,3297.3,0.34376156]